Cogmind - Beta 9.6 @@@ ROGUE MODE // 2020.07.15 @ 19:48:21 // Winter2019/RPGLIKE Player: Hermelin Result: Destroyed by 2V-JPH(z) with Zionite Laser-S Performance ------------- Evolutions (3) 1500 Regions Visited (11) 2200 Robots Destroyed (190) 950 Value Destroyed (6083) 6083 Prototype IDs (46) 920 Alien Tech Used (0) 0 Bonus (1491) 1491 TOTAL SCORE: 13144 Bonus ------- High Alert Combat Kills 472 Follower Combat Kills 419 Aligned with FarCom 300 Met Imprinter 300 Cogmind --------- Core Integrity 0/1150 Matter 300/300 Energy 465/500 System Corruption 0% Temperature Cool (128) Movement Hovering (48) Location -7/Deep Caves Parts ------- > --- POWER (3) -------- F-cell Engine Zionite Light DM Reactor Zionite Light DM Reactor > --- PROPULSION (4) --- Zionite Glidesys I Zionite Glidesys I Zionite Glidesys I Zionite Glidesys I > --- UTILITY (9) ------ Improved Melee Analysis Suite Target Analyzer Microactuators Improved Shield Generator Hacking Suite Makeshift Hacking Suite Makeshift System Shield Advanced System Shield > --- WEAPON (4) ------- Ripper Tearclaws > --- INVENTORY (4) ---- Zionite Light DM Reactor Zionite Glidesys I Zionite Biocell Phase Shifter Peak State ------------ > --- POWER ------------ F-cell Engine Zionite Light DM Reactor Zionite Light DM Reactor > --- PROPULSION ------- Zionite Glidesys I Zionite Glidesys I Zionite Glidesys I Zionite Glidesys I > --- UTILITY ---------- Improved Melee Analysis Suite Target Analyzer Microactuators Reactive Plating Improved Shield Generator Hacking Suite Makeshift Hacking Suite Makeshift System Shield Advanced System Shield > --- WEAPON ----------- Zionite Laser-S Ripper Tearclaws > --- INVENTORY -------- Zionite Light DM Reactor Zionite Glidesys I Zionite Biocell Phase Shifter [Rating: 103] Favorites ----------- Power Light Nuclear Core Engine Light Deuterium Engine Power Core Light Nuclear Core Reactor Zionite Light DM Reactor Propulsion Improved VTOL Module Treads Light Treads Wheel Compact Wheel Hover Unit Zionite Glidesys I Flight Unit Improved VTOL Module Utility Hacking Suite Device System Backup Module Storage Compact Battery Processor Improved Melee Analysis Suite Hackware Hacking Suite Protection Hardened Light Armor Plating Weapon Great Axe Energy Gun AWS/Thermal Ballistic Gun Assault Rifle Impact Weapon Heavy Mace Slashing Weapon Great Axe Piercing Weapon Spear Special Melee Weapon Datajack Build | -11 -10 -10 -10 -9 -8 -8 -7 -7 -7 -7 -7 ------- Run | Scr Mat Min Exi Min Mat Sto Fac Low Low Zio Dee Slots Evolved 16 | 4 2 1 . 1 2 2 3 . 1 . . Power 2 | 1 . . . . . . 1 . . . . Propulsion 3 | 1 1 . . 1 . . . . . . . Utility 8 | 1 1 1 . . 1 1 2 . 1 . . Weapon 3 | 1 . . . . 1 1 . . . . . Parts Attached 116 | 8 20 1 1 5 9 26 16 3 4 6 17 Power 24 | 2 5 . . . 1 5 5 1 . . 5 Engine 10 | 2 3 . . . . 2 2 . . . 1 Core 11 | . 2 . . . 1 3 3 1 . . 1 Reactor 3 | . . . . . . . . . . . 3 Propulsion 23 | 2 4 . . 5 . 7 1 . . . 4 Treads 2 | 1 1 . . . . . . . . . . Leg . | . . . . . . . . . . . . Wheel 1 | 1 . . . . . . . . . . . Hover 4 | . . . . . . . . . . . 4 Flight 16 | . 3 . . 5 . 7 1 . . . . Utility 41 | 2 3 1 . . 1 12 8 1 3 4 6 Device 9 | 1 . . . . . 2 2 . . 1 3 Storage 1 | . . . . . . . . . 1 . . Processor 7 | 1 . . . . . 2 3 . 1 . . Hackware 11 | . 3 . . . 1 3 1 . . 3 . Protection 13 | . . 1 . . . 5 2 1 1 . 3 Artifact . | . . . . . . . . . . . . Weapon 28 | 2 8 . 1 . 7 2 2 1 1 2 2 Energy Gun 6 | 1 . . 1 . 1 . . . . 1 2 Energy Cannon . | . . . . . . . . . . . . Ballistic Gun 7 | 1 6 . . . . . . . . . . Ballistic Cannon . | . . . . . . . . . . . . Launcher . | . . . . . . . . . . . . Special Weapon . | . . . . . . . . . . . . Impact Weapon 6 | . 2 . . . 3 1 . . . . . Slashing Weapon 6 | . . . . . 2 1 . 1 1 1 . Piercing Weapon 2 | . . . . . . . 2 . . . . Special Melee Weapon 1 | . . . . . 1 . . . . . . Unidentified Prototypes 10 | . . . . . . 2 2 . . . 6 Parts Lost 6 | . . . . . . 3 . . . . 3 Power . | . . . . . . . . . . . . Propulsion . | . . . . . . . . . . . . Utility 5 | . . . . . . 3 . . . . 2 Weapon 1 | . . . . . . . . . . . 1 Highest Loss Streak 2 | . . . . . . 1 . . . . 2 Average Slot Usage (%) 94 | . 99 83 81 82 95 98 99 99 95 90 85 Engine 6 | . 20 . . . . 4 5 5 5 5 5 Core 7 | . 3 10 9 8 14 8 7 10 10 10 . Treads 1 | . 8 . . . . . . . . . . Wheel 1 | . 9 . . . . . . . . . . Flight 20 | . 6 27 27 31 28 26 21 21 20 20 10 Device 3 | . 7 . . . . 1 4 5 5 4 9 Processor 4 | . 7 . . . . . 4 5 6 10 10 Hackware 23 | . 11 27 27 25 27 27 26 26 25 25 20 Protection 4 | . . 7 9 8 7 4 5 4 5 5 4 Energy Gun 1 | . 2 . 4 8 6 . . . . . 1 Ballistic Gun 3 | . 19 . . . . . . . . . . Impact Weapon 3 | . 1 10 4 . 6 9 . . . . . Slashing Weapon 8 | . . . . . . 13 15 15 14 10 10 Piercing Weapon 1 | . . . . . . . 4 5 4 . . Naked Turns . | . . . . . . . . . . . . Heaviest Build 65 | 11 16 16 18 18 26 26 35 36 36 36 65 Greatest Support 103 | 16 21 17 17 21 26 34 36 36 36 36 103 Greatest Overweight (x) 1 | . . . 1 1 . . 1 . . . 1 Average Overweight (x) . | . . . . . . . . . . . . Largest Inventory Capacity 4 | 2 2 2 2 2 2 3 4 4 4 4 4 Average Capacity 2 | 1 2 2 2 2 2 2 3 4 4 4 4 Most Carried 4 | 2 2 2 2 2 2 3 4 4 4 4 4 Average Carried 2 | 1 1 1 2 1 1 2 3 3 4 3 3 Final Capacity 4 | 2 2 2 2 2 2 3 4 4 4 4 4 Final Carried 4 | 2 2 2 2 2 2 2 4 4 4 4 4 Class Distribution -------------------- 52% | Hacker-Sprinter 16% | Hacker-Mutant 13% | Scavenger-Sprinter 12% | Mutant 3% | Scavenger-Mutant Dominant Class ---------------- Mutant | -10/Materials Hacker-Mutant | -10/Mines Hacker-Mutant | -10/Exiles Scavenger-Sprinter | -9/Mines Scavenger-Sprinter | -8/Materials Hacker-Sprinter | -8/Storage Hacker-Sprinter | -7/Factory Hacker-Sprinter | -7/Lower Caves Hacker-Sprinter | -7/Lower Caves Hacker-Sprinter | -7/Zion Hacker-Sprinter | -7/Deep Caves Resources | -11 -10 -10 -10 -9 -8 -8 -7 -7 -7 -7 -7 ----------- Run | Scr Mat Min Exi Min Mat Sto Fac Low Low Zio Dee Matter Collected 1922 | 270 722 10 . 60 50 308 207 30 40 60 165 Remotely . | . . . . . . . . . . . . Salvage Created 7569 | 26 1120 139 . 393 437 1769 1612 794 716 75 488 Parts 410 | 8 66 2 . 22 18 81 88 55 39 4 27 Haulers Intercepted 13 | . 2 . . . . 6 5 . . . . Recyclers Shooed 3 | . 2 1 . . . . . . . . . Parts Field Recycled . | . . . . . . . . . . . . Retrieved Matter . | . . . . . . . . . . . . Parts Self-Destructed 93 | . . . . . . . . 53 38 2 . Prevented . | . . . . . . . . . . . . Kills | -11 -10 -10 -10 -9 -8 -8 -7 -7 -7 -7 -7 ------- Run | Scr Mat Min Exi Min Mat Sto Fac Low Low Zio Dee Combat Hostiles Destroyed 140 | . 16 2 . 15 6 31 24 22 16 1 7 Melee 99 | . . . . . . 29 24 22 16 1 7 Guns 34 | . 16 . . 15 3 . . . . . . AOE 1 | . . . . . 1 . . . . . . Classes Destroyed 17 | 1 7 . . 1 2 . . 3 1 1 1 Worker 7 | . 1 1 . . . 1 4 . . . . Tunneler 3 | 2 1 . . . . . . . . . . Hauler 13 | . 2 . . . . 6 5 . . . . Recycler 5 | . 2 1 . . . 2 . . . . . Operator 9 | . 5 . . . . 2 2 . . . . Watcher 12 | . 2 . . . 3 2 5 . . . . Swarmer 34 | . 3 2 . 8 . 4 4 10 3 . . Grunt 56 | . 13 . . 6 2 15 12 3 5 . . Brawler 8 | . . . . 1 . 1 1 2 3 . . Duelist 3 | . . . . . . . . 3 . . . Sentry 23 | . . . . . 3 11 5 2 2 . . Hunter 5 | . . . . . 1 . 2 . 2 . . Programmer 1 | . . . . . . . . . 1 . . Behemoth 1 | . . . . . . . . 1 . . . Zionite 1 | . . . . . . . . . . 1 . Z-Light 7 | . . . . . . . . . . . 7 Mutant 1 | . . . . . . . . 1 . . . Best Kill Streak 10 | 2 5 2 . 5 4 8 10 8 5 2 4 Combat Bots Only 8 | . 4 2 . 5 2 7 4 8 5 1 4 Max Kills in Single Turn 2 | 1 1 1 . 1 1 1 1 2 1 1 1 Gunslinging . | . . . . . . . . . . . . Exploded 1 | . . . . . 1 . . . . . . Melee 2 | . . . . . . 1 1 2 1 1 1 Uniques/NPCs Destroyed 1 | . . . . . . . . . . 1 . Imprinter (-7/Zion) Combat | -11 -10 -10 -10 -9 -8 -8 -7 -7 -7 -7 -7 -------- Run | Scr Mat Min Exi Min Mat Sto Fac Low Low Zio Dee Damage Taken 7660 | . 840 255 . 208 601 1380 642 1289 515 359 1571 Core 5488 | . 672 195 . 138 438 1029 431 901 359 210 1115 Absorbed by Shields 562 | . . . . . . . . . . . 562 Redirected to Core 4413 | . 522 151 . 113 359 697 331 814 315 142 969 Core Remaining (%) 79 | 100 . . . 40 . 98 . . . . . Volleys Fired 123 | 2 106 . . . 10 . . . . 5 . Largest 2 | 2 2 . . . 1 . . . . 1 . Hottest 75 | 70 70 . . . 50 . . . . 75 . Shots Fired 288 | 4 206 . . 48 25 . . . . 5 . Gun 288 | 4 206 . . 48 25 . . . . 5 . Cannon . | . . . . . . . . . . . . Launcher . | . . . . . . . . . . . . Special . | . . . . . . . . . . . . Kinetic 180 | 2 178 . . . . . . . . . . Thermal 98 | 2 28 . . 48 15 . . . . 5 . Explosive . | . . . . . . . . . . . . Electromagnetic 10 | . . . . . 10 . . . . . . Robot Hit Streak 53 | 2 16 . . 45 53 . . . . . . Robot Miss Streak 7 | . 7 . . 1 3 . . . . . . Penetration Max . | . . . . . . . . . . . . Secondary Targets 2 | . 2 . . . . . . . . . . Max Gunslinging Chain 1 | . 1 . . . . . . . . . . Autonomous 64 | . . . . 48 16 . . . . . . Shots Hit Robots 613 | 2 134 8 . 47 48 132 97 62 29 9 45 Core Hits 243 | 2 53 . . 16 11 43 47 32 19 3 17 Critical Hits 20 | . . . . . . 2 7 4 1 1 5 Critical Kills 10 | . . . . . . 1 4 1 1 . 3 Critical Parts Destroyed 10 | . . . . . . 1 3 3 . 1 2 Melee Attacks 548 | . 2 11 . . 48 164 116 80 38 33 56 Impact 96 | . 2 11 . . 48 34 1 . . . . Slashing 302 | . . . . . . 130 45 25 13 33 56 Piercing 150 | . . . . . . . 70 55 25 . . Sneak Attacks 44 | . 1 2 . . . 24 14 1 2 . . Combat Hostiles 13 | . . . . . . 9 1 1 2 . . Follow-up Attacks 101 | . . . . . . 44 25 17 5 1 9 Damage Inflicted 21001 | 25 1906 376 . 1352 1168 6818 4494 1902 1122 288 1550 Guns 3712 | 25 1739 . . 1352 596 . . . . . . Cannons . | . . . . . . . . . . . . Explosions 150 | . . . . . 150 . . . . . . Melee 17139 | . 167 376 . . 422 6818 4494 1902 1122 288 1550 Ramming . | . . . . . . . . . . . . Kinetic 1477 | . 1477 . . . . . . . . . . Thermal 2200 | 25 262 . . 1352 561 . . . . . . Explosive . | . . . . . . . . . . . . Electromagnetic 185 | . . . . . 185 . . . . . . Impact 1766 | . 167 376 . . 422 705 96 . . . . Slashing 10198 | . . . . . . 6113 1500 542 205 288 1550 Piercing 5175 | . . . . . . . 2898 1360 917 . . Highest Corruption 5 | . . . . . . 5 3 3 2 2 . Average Corruption 3 | . . . . . . 4 3 2 2 2 . Corruption Purged 1 | . . . . . . . . 1 . . . Effects 43 | . . . . . . 17 17 6 3 . . Message Errors 8 | . . . . . . 2 4 1 1 . . Matter Fused 8 | . . . . . . 1 7 . . . . Heat Flow Errors 8 | . . . . . . 2 3 2 1 . . Energy Discharges 3 | . . . . . . 1 2 . . . . Data Loss (minor) 5 | . . . . . . 3 . 1 1 . . Data Loss (major) 1 | . . . . . . 1 . . . . . Targeting Errors 10 | . . . . . . 7 1 2 . . . Overload Shots . | . . . . . . . . . . . . Overflow Damage 2104 | . 89 168 . . 55 1133 353 55 62 2 187 Projectiles . | . . . . . . . . . . . . Explosions 39 | . . . . . 39 . . . . . . Melee 2065 | . 89 168 . . 16 1133 353 55 62 2 187 Knockbacks 2 | . . 2 . . . . . . . . . Impact 2 | . . 2 . . . . . . . . . Kinetic . | . . . . . . . . . . . . Secondary . | . . . . . . . . . . . . Self-Inflicted Damage . | . . . . . . . . . . . . Shots . | . . . . . . . . . . . . Rammed . | . . . . . . . . . . . . Targets Rammed . | . . . . . . . . . . . . Kicked . | . . . . . . . . . . . . Crushed . | . . . . . . . . . . . . Highest Temperature 428 | 24 216 8 . 5 206 192 428 150 272 90 323 Average Temperature 86 | 14 68 4 . 1 87 36 114 79 146 44 214 Received Heat Transfer 2099 | . 396 . . 60 243 459 252 66 126 47 450 Effects 6 | . . . . . . . 4 . . . 2 Energy Bleed 1 | . . . . . . . 1 . . . . Interference 2 | . . . . . . . 1 . . . 1 Damage (minor) 3 | . . . . . . . 2 . . . 1 Siege Activations . | . . . . . . . . . . . . Robots Corrupted . | . . . . . . . . . . . . Combat Hostiles . | . . . . . . . . . . . . Parts Fried 16 | . 3 4 . . 3 6 . . . . . Impact Corruptions 22 | . 1 7 . . 4 10 . . . . . Robots Melted . | . . . . . . . . . . . . Combat Hostiles . | . . . . . . . . . . . . Parts Melted 4 | . . . . 1 1 . . . . . 2 Heat Transferred 3171 | 74 777 . . 1702 618 . . . . . . Parts Sabotaged . | . . . . . . . . . . . . Parts Stolen . | . . . . . . . . . . . . Parts Stripped . | . . . . . . . . . . . . Power Chain Reactions 3 | . . . . . 3 . . . . . . Missiles Intercepted . | . . . . . . . . . . . . Alert | -11 -10 -10 -10 -9 -8 -8 -7 -7 -7 -7 -7 ------- Run | Scr Mat Min Exi Min Mat Sto Fac Low Low Zio Dee Peak Influence 709 | 10 241 136 . 324 235 450 709 . . . . Average Influence 170 | 2 139 110 . 142 130 146 288 . . . . Maximum Alert Level 3 | . 1 . . 1 1 2 3 . . . . Low Security (%) 64 | 100 82 100 . 57 65 68 33 . . . . Level 1 29 | . 17 . . 42 34 30 45 . . . . Level 2 4 | . . . . . . 1 19 . . . . Level 3 . | . . . . . . . 2 . . . . Level 4 . | . . . . . . . . . . . . Level 5 . | . . . . . . . . . . . . High Security . | . . . . . . . . . . . . Max Security . | . . . . . . . . . . . . Squads Dispatched 22 | . 5 . . 1 2 6 7 . 1 . . Investigation 10 | . 1 . . 1 1 4 3 . . . . Extermination 1 | . . . . . . . 1 . . . . Reinforcement 10 | . 4 . . . 1 2 3 . . . . Assault 1 | . . . . . . . . . 1 . . Garrison . | . . . . . . . . . . . . Intercept . | . . . . . . . . . . . . Construction Impeded . | . . . . . . . . . . . . Haulers Reinforced 1 | . . . . . . . 1 . . . . Stealth | -11 -10 -10 -10 -9 -8 -8 -7 -7 -7 -7 -7 --------- Run | Scr Mat Min Exi Min Mat Sto Fac Low Low Zio Dee Distress Signals 4 | . 1 . . . 1 1 1 . . . . Communications Jammed . | . . . . . . . . . . . . Distress Signals . | . . . . . . . . . . . . Times Spotted 220 | . 33 10 . 18 13 37 40 23 15 22 9 Peak Tracking Total 18 | . 4 6 . 4 3 6 4 8 6 18 6 Tactical Retreats 12 | . . 1 . 2 1 4 1 . 2 . 1 Traps | -11 -10 -10 -10 -9 -8 -8 -7 -7 -7 -7 -7 ------- Run | Scr Mat Min Exi Min Mat Sto Fac Low Low Zio Dee Traps Triggered 2 | . . . . . . 2 . . . . . Indirectly . | . . . . . . . . . . . . Trap Hack Attempts . | . . . . . . . . . . . . Triggered . | . . . . . . . . . . . . Disarmed 16 | . 6 . . . 4 . 6 . . . . Reprogrammed . | . . . . . . . . . . . . Reused . | . . . . . . . . . . . . Traps Extracted . | . . . . . . . . . . . . Installed . | . . . . . . . . . . . . Triggered . | . . . . . . . . . . . . Machines | -11 -10 -10 -10 -9 -8 -8 -7 -7 -7 -7 -7 ---------- Run | Scr Mat Min Exi Min Mat Sto Fac Low Low Zio Dee Machines Disabled 6 | . 1 . . . . 4 . 1 . . . Max in Single Turn 1 | . 1 . . . . 1 . 1 . . . Garrison Access 3 | . . . . . 1 1 1 . . . . Machines Sabotaged . | . . . . . . . . . . . . Garrisons Compromised . | . . . . . . . . . . . . Overloaded Fab Kills . | . . . . . . . . . . . . Fab Network Shutdowns 1 | . . . . . . . 1 . . . . Hacking | -11 -10 -10 -10 -9 -8 -8 -7 -7 -7 -7 -7 --------- Run | Scr Mat Min Exi Min Mat Sto Fac Low Low Zio Dee Machines Accessed 48 | . 8 . 1 1 8 14 15 . . 1 . Terminals 31 | . 6 . . 1 6 10 8 . . . . Fabricators 3 | . . . . . . . 3 . . . . Repair Stations 2 | . . . . . . 2 . . . . . Recycling Units 6 | . 2 . . . 1 1 2 . . . . Scanalyzers 1 | . . . . . . . 1 . . . . Garrison Access 3 | . . . . . 1 1 1 . . . . Total Hacks 192 | . 23 . 1 4 34 56 70 . . 4 . Successful 142 | . 14 . 1 3 28 46 46 . . 4 . Failed 47 | . 9 . . . 6 9 23 . . . . Catastrophic 3 | . 1 . . . . . 2 . . . . Database Lockouts 5 | . . . . 2 . 2 1 . . . . Manual 117 | . 15 . 1 5 22 29 41 . . 4 . Terminals 147 | . 19 . . 4 30 39 55 . . . . Fabricators 6 | . . . . . . . 6 . . . . Repair Stations 10 | . . . . . . 10 . . . . . Recycling Units 15 | . 4 . . . 3 3 5 . . . . Scanalyzers 2 | . . . . . . . 2 . . . . Garrison Access 7 | . . . . . 1 4 2 . . . . Terminal Hacks 78 | . 6 . 1 2 15 22 28 . . 4 . Part Schematic 25 | . 2 . . 1 1 5 12 . . 4 . Robot Analysis 1 | . . . . . 1 . . . . . . Prototype ID Bank 9 | . 1 . . . 3 2 3 . . . . Open Door 1 | . . . . . . 1 . . . . . Branch Access Points 3 | . . . . . 1 1 1 . . . . Emergency Access Points 1 | . . . . . . 1 . . . . . Terminal Index 1 | . . . . . . . 1 . . . . Recycling Unit Index 1 | . . . . . . . 1 . . . . Alert Level 3 | . . . . . 1 2 . . . . . Unreport Threat 17 | . . . . . 4 7 6 . . . . Locate Traps 2 | . 1 . . . . 1 . . . . . Disarm Traps 3 | . 1 . . . 1 . 1 . . . . Maintenance Status 1 | . . . . . . . 1 . . . . Recall Reinforcements 1 | . . . . . 1 . . . . . . Hauler Manifests 3 | . 1 . . . 1 . 1 . . . . Registered Components 2 | . . . . . 1 1 . . . . . Registered Prototypes 1 | . . . . . . 1 . . . . . Zone Layout 2 | . . . . 1 . . 1 . . . . EX-Prototype ID Bank 1 | . . . 1 . . . . . . . . Fabricator Hacks 6 | . . . . . . . 6 . . . . Load Schematic 2 | . . . . . . . 2 . . . . Build 4 | . . . . . . . 4 . . . . Repair Station Hacks 10 | . . . . . . 10 . . . . . Scan Component 5 | . . . . . . 5 . . . . . Repair 5 | . . . . . . 5 . . . . . Recycling Unit Hacks 10 | . 3 . . . 2 1 4 . . . . Process 1 | . . . . . . . 1 . . . . Report Inventory 6 | . 2 . . . 1 1 2 . . . . Retrieve Components 3 | . 1 . . . 1 . 1 . . . . Scanalyzer 2 | . . . . . . . 2 . . . . Insert Component 1 | . . . . . . . 1 . . . . Analyze 1 | . . . . . . . 1 . . . . Garrison Access Hacks 4 | . . . . . 1 2 1 . . . . Seal Access 3 | . . . . . 1 1 1 . . . . Coupler Status 1 | . . . . . . 1 . . . . . Unauthorized Hacks 32 | . 5 . . 1 10 11 5 . . . . Terminals 26 | . 4 . . 1 9 8 4 . . . . Track 8 | . 1 . . 1 3 2 1 . . . . Assimilate 3 | . . . . . 1 2 . . . . . Botnet 11 | . 2 . . . 3 4 2 . . . . Operators 4 | . 1 . . . 2 . 1 . . . . Fabricators . | . . . . . . . . . . . . Repair Stations . | . . . . . . . . . . . . Recycling Units 3 | . 1 . . . 1 1 . . . . . Mask 3 | . 1 . . . 1 1 . . . . . Scanalyzers . | . . . . . . . . . . . . Garrison Access 3 | . . . . . . 2 1 . . . . Reprogram 1 | . . . . . . 1 . . . . . Watchers 2 | . . . . . . 1 1 . . . . Data Cores Recovered . | . . . . . . . . . . . . Used . | . . . . . . . . . . . . Hacking Detections 38 | . 7 . . 1 5 12 13 . . . . Full Trace Events 8 | . 1 . . 1 1 3 2 . . . . Feedback Events . | . . . . . . . . . . . . Feedback Blocked . | . . . . . . . . . . . . Robot Schematics Acquired . | . . . . . . . . . . . . Robots Built 3 | . . . . . . . 3 . . . . Matter 252 | . . . . . . . 252 . . . . Time 44 | . . . . . . . 44 . . . . Total Robot Build Rating 12 | . . . . . . . 12 . . . . Part Schematics Acquired 26 | . 2 . . 1 1 5 13 . . 4 . Parts Built 3 | . . . . . . . 3 . . . . Matter 358 | . . . . . . . 358 . . . . Time 142 | . . . . . . . 142 . . . . Total Part Build Rating 12 | . . . . . . . 12 . . . . Parts Repaired 5 | . . . . . . 5 . . . . . Time 128 | . . . . . . 128 . . . . . Parts Recycled . | . . . . . . . . . . . . Recycled Matter 449 | . . . . . . . 449 . . . . Retrieved Matter . | . . . . . . . . . . . . Retrieved Components 20 | . 10 . . . 9 . 1 . . . . Parts Scanalyzed 1 | . . . . . . . 1 . . . . Part Schematics Acquired 1 | . . . . . . . 1 . . . . Parts Damaged . | . . . . . . . . . . . . Bothacking | -11 -10 -10 -10 -9 -8 -8 -7 -7 -7 -7 -7 ------------ Run | Scr Mat Min Exi Min Mat Sto Fac Low Low Zio Dee Used RIF Installer . | . . . . . . . . . . . . Robots Hacked . | . . . . . . . . . . . . Non-combat . | . . . . . . . . . . . . Combat . | . . . . . . . . . . . . Robot Hacks Applied . | . . . . . . . . . . . . Relay Couplers Released . | . . . . . . . . . . . . Robots Rewired 4 | . . . . . . . 1 2 1 . . Allies Hacked . | . . . . . . . . . . . . Hacks Repelled . | . . . . . . . . . . . . Allies | -11 -10 -10 -10 -9 -8 -8 -7 -7 -7 -7 -7 -------- Run | Scr Mat Min Exi Min Mat Sto Fac Low Low Zio Dee Total Allies 22 | . . 3 . . 1 11 4 2 1 . . Largest Group 12 | . . 3 . . 1 10 12 2 1 1 . Highest-Rated Group 204 | . . 40 . . 10 173 204 48 20 20 . Highest-Rated Ally 32 | . . 16 . . 10 29 20 32 20 20 . Total Orders 1 | . . . . . 1 . . . . . . GOTO 1 | . . . . . 1 . . . . . . Ally Attacks 116 | . . 10 . . . 40 62 3 . 1 . Total Damage 1493 | . . 88 . . . 597 674 105 . 29 . Kills 20 | . . 1 . . . 7 9 2 . 1 . Allies Corrupted . | . . . . . . . . . . . . Allies Melted . | . . . . . . . . . . . . Intel | -11 -10 -10 -10 -9 -8 -8 -7 -7 -7 -7 -7 ------- Run | Scr Mat Min Exi Min Mat Sto Fac Low Low Zio Dee Robot Analysis Total 1 | . . . . . 1 . . . . . . Derelict Logs Recovered 7 | . . . . 1 . . . 1 3 2 . Drone Launches . | . . . . . . . . . . . . Drone Recoveries . | . . . . . . . . . . . . Exploration | -11 -10 -10 -10 -9 -8 -8 -7 -7 -7 -7 -7 ------------- Run | Scr Mat Min Exi Min Mat Sto Fac Low Low Zio Dee Turns Passed 6624 | 86 1247 240 219 508 398 1256 1087 395 422 479 287 Spaces Moved 10061 | 65 1010 441 403 811 545 1351 2118 571 887 1470 389 Core 7 | 7 . . . . . . . . . . . Treads 170 | . 170 . . . . . . . . . . Legs . | . . . . . . . . . . . . Wheels 463 | 58 405 . . . . . . . . . . Hover 127 | . . . . . . . . . . . 127 Flight 9294 | . 435 441 403 811 545 1351 2118 571 887 1470 262 Fastest Speed 26 | 50 34 34 34 31 31 26 26 26 26 26 26 Average Speed 35 | 94 82 34 54 41 31 26 26 26 26 26 33 Slowest Speed 160 | 100 160 34 114 114 31 31 99 26 26 26 130 Overloaded Moves . | . . . . . . . . . . . . Propulsion Burnouts . | . . . . . . . . . . . . Robots Hopped 26 | . 1 . . 11 5 5 4 . . . . Cave-ins Triggered . | . . . . . . . . . . . . Exploration Rate (%) 69 | 3 95 69 90 99 44 98 46 67 82 90 46 Regions Visited 11 Branch Regions 8 Pre-discovered Areas 2 | . . . . . . . . 1 . 1 . Known Exits Taken 2 | . . . . . 1 . 1 . . . . Unknown Exits Taken 9 | 1 1 1 1 1 . 1 . 1 1 1 . Scrap Searched 9 | . . . . 3 . . . 1 2 3 . Spaces Dug 16 | . . 1 . . 13 . . 1 1 . . Terrain Destroyed 41 | . . 1 . 2 36 . . 1 1 . . Melee 16 | . . 1 . . 13 . . 1 1 . . Projectile 3 | . . . . 2 1 . . . . . . AOE 22 | . . . . . 22 . . . . . . Actions | -11 -10 -10 -10 -9 -8 -8 -7 -7 -7 -7 -7 --------- Run | Scr Mat Min Exi Min Mat Sto Fac Low Low Zio Dee Total 12183 | 82 1219 509 404 972 681 2033 2515 726 1035 1516 491 Wait 1137 | 4 46 53 . 148 60 448 243 35 82 4 14 Move 10000 | 64 1007 440 402 788 534 1342 2109 570 886 1469 389 Hop 24 | . 1 . . 11 5 3 4 . . . . Pick Up 37 | 3 7 1 . 1 3 6 7 2 1 2 4 Fast Attach 71 | 8 11 . 1 . 6 16 11 2 3 2 11 Attach 17 | . 3 1 . 1 3 3 1 . . 2 3 Detach 9 | . 1 1 . . 1 1 1 . . . 4 Swap 28 | . 6 . . 4 . 7 4 1 1 2 3 Drop 91 | 1 20 2 1 4 6 19 14 4 5 4 11 Fire 123 | 2 106 . . . 10 . . . . 5 . Melee 396 | . 2 11 . . 47 107 79 55 25 26 44 Ram . | . . . . . . . . . . . . Kick . | . . . . . . . . . . . . Crush . | . . . . . . . . . . . . Escape Stasis . | . . . . . . . . . . . . Rewire 12 | . . . . . . . 6 4 2 . . Trap . | . . . . . . . . . . . . Miscellaneous 238 | . 9 . . 15 6 81 36 53 30 . 8 Route ------- -11/Scrapyard -10/Materials (discovered 4 exits: [*Mat x3] / [*Min]) -10/Mines (discovered 2 exits: [*Mat] / *Exi) -10/Exiles (discovered 2 exits: *Min x2) -9/Mines (discovered 2 exits: *Mat x2) -8/Materials -8/Storage (discovered 2 exits: *Fac / Rec) -7/Factory (discovered 4 exits: [*Fac x2] / *Low x2) -7/Lower Caves -7/Lower Caves (discovered 2 exits: [*Fac] / *Zio) -7/Zion (discovered 2 exits: [*Dee] / [*Pro]) -7/Deep Caves History --------- Turn | Location | Event 9 | -11/Scrapyard | Upgraded with Power slot (x1) 9 | -11/Scrapyard | Upgraded with Propulsion slot (x1) 9 | -11/Scrapyard | Upgraded with Utility slot (x1) 9 | -11/Scrapyard | Upgraded with Weapon slot (x1) 16 | -11/Scrapyard | Discovered new exit (range 15) 87 | -11/Scrapyard | Entered Materials 99 | -10/Materials | Discovered new exit (range 15) 256 | -10/Materials | Discovered new exit (range 14) 304 | -10/Materials | Build established: Mutant 463 | -10/Materials | Discovered new exit (range 16) 999 | -10/Materials | Reached level 2 1006 | -10/Materials | Upgraded with Propulsion slot (x1) 1006 | -10/Materials | Upgraded with Utility slot (x1) 1055 | -10/Materials | Core integrity fell below 50% 1156 | -10/Materials | Discovered new exit (range 11) 1334 | -10/Materials | Entered Mines 1336 | -10/Mines | Assisted by bots powering up and referring to "LRC-V3" 1348 | -10/Mines | Core integrity fell below 20% 1361 | -10/Mines | Reached level 3 1363 | -10/Mines | Upgraded with Utility slot (x1) 1431 | -10/Mines | Met a Derelict bent on vengeance 1444 | -10/Mines | Deemed a non-threat by the Exiles lab entrance 1444 | -10/Mines | Discovered new exit (range 5) 1470 | -10/Mines | Assembled infested the area 1483 | -10/Mines | Discovered new exit (range 9) 1561 | -10/Mines | Build established: Hacker-Mutant 1574 | -10/Mines | Entered Exiles 1579 | -10/Exiles | Discovered new exit (range 16) 1591 | -10/Exiles | Met 8R-AWN 1596 | -10/Exiles | Met EX-HEX 1611 | -10/Exiles | Met EX-DEC 1618 | -10/Exiles | Visited The Gauntlet 1661 | -10/Exiles | Met EX-BIN 1666 | -10/Exiles | Aligned with FarCom system 1666 | -10/Exiles | Given EX-Vault access code 1674 | -10/Exiles | Opened EX-Vault 1678 | -10/Exiles | Found AWS/Thermal 1707 | -10/Exiles | Warned to stay clear of 0b10 Research branches 1784 | -10/Exiles | Discovered new exit (range 10) 1793 | -10/Exiles | Left Exiles lab with AWS/Thermal 1793 | -10/Exiles | Entered Mines 1943 | -9/Mines | Reached level 4 1943 | -9/Mines | Upgraded with Propulsion slot (x1) 2013 | -9/Mines | Discovered new exit (range 4) 2064 | -9/Mines | Received a Rocket Launcher from a helpful Derelict 2104 | -9/Mines | Learned Materials stockpile data 2129 | -9/Mines | Discovered new exit (range 10) 2140 | -9/Mines | Central database locked down 2251 | -9/Mines | Build established: Scavenger-Sprinter 2301 | -9/Mines | Entered Materials 2302 | -8/Materials | Core integrity fell below 50% 2303 | -8/Materials | Reached level 5 2353 | -8/Materials | Reached level 6 2360 | -8/Materials | Upgraded with Utility slot (x1) 2391 | -8/Materials | Upgraded with Weapon slot (x1) 2466 | -8/Materials | Core integrity fell below 20% 2538 | -8/Materials | Identified exit to Storage 2699 | -8/Materials | Entered Storage 2701 | -8/Storage | Reached level 7 2736 | -8/Storage | Repaired Hrd. Light Armor Plating 2770 | -8/Storage | Repaired Flight Unit 2809 | -8/Storage | Repaired Lgt. Nuclear Core 3042 | -8/Storage | Identified exit to Recycling 3151 | -8/Storage | Reached level 8 3153 | -8/Storage | Upgraded with Weapon slot (x1) 3175 | -8/Storage | Build established: Hacker-Sprinter 3296 | -8/Storage | Central database locked down 3398 | -8/Storage | Destroyed 7 combat bots 3434 | -8/Storage | Reached level 9 3462 | -8/Storage | Upgraded with Utility slot (x1) 3537 | -8/Storage | Discovered new exit (range 16) 3598 | -8/Storage | Assisted by bots powering up and referring to "LRC-V3" 3678 | -8/Storage | Repaired Lgt. Deuterium Engine 3692 | -8/Storage | Repaired Lgt. Armor Plating 3723 | -8/Storage | Reached level 10 3837 | -8/Storage | Reached level 11 3955 | -8/Storage | Entered Factory 3955 | -7/Factory | Accompanied by 9 allies 3957 | -7/Factory | Reached level 12 3957 | -7/Factory | Upgraded with Utility slot (x2) 4017 | -7/Factory | Fabricated B-48 Gladiator? 4156 | -7/Factory | Reached level 13 4170 | -7/Factory | Fabricated Melee Analysis Suite (x2) 4257 | -7/Factory | Discovered new exit (range 17) 4419 | -7/Factory | Reached level 14 4424 | -7/Factory | Upgraded with Power slot (x1) 4453 | -7/Factory | Discovered new exit (range 17) 4619 | -7/Factory | Identified exit to Lower Caves 4858 | -7/Factory | Local fabrication network quarantined 4911 | -7/Factory | Fabricated Adv. System Shield (x1) 4967 | -7/Factory | Reached level 15 4999 | -7/Factory | Central database locked down 5042 | -7/Factory | Entered Lower Caves 5135 | -7/Lower Caves | Attracted the attention of an 0b10 checkpoint 5176 | -7/Lower Caves | Destroyed 8 combat bots 5336 | -7/Lower Caves | Reached level 16 5392 | -7/Lower Caves | Discovered new exit (range 5) 5392 | -7/Lower Caves | Spotted B-75 Beast 5396 | -7/Lower Caves | Attacked by a delusional Derelict stockpiling parts 5418 | -7/Lower Caves | Destroyed B-75 Beast 5437 | -7/Lower Caves | Entered another Lower Caves area 5440 | -7/Lower Caves | Learned Factory emergency access door positions 5452 | -7/Lower Caves | Discovered new exit (range 4) 5469 | -7/Lower Caves | Upgraded with Utility slot (x1) 5486 | -7/Lower Caves | Encountered a Warlord checkpoint 5486 | -7/Lower Caves | Learned location of 1 exit from Factory 5679 | -7/Lower Caves | Attracted the attention of an 0b10 outpost 5709 | -7/Lower Caves | Learned Factory terminal intel 5784 | -7/Lower Caves | Discovered new exit (range 14) 5859 | -7/Lower Caves | Entered Zion 5859 | -7/Zion | Accompanied by 1 ally 5882 | -7/Zion | System corruption cleaned by Quarantine Array 5903 | -7/Zion | Discovered new exit (range 15) 5948 | -7/Zion | Learned Factory terminal intel 5968 | -7/Zion | Learned Factory repair station intel 5987 | -7/Zion | Learned location of Quarantine (-3) 6042 | -7/Zion | Learned Factory emergency access door positions 6061 | -7/Zion | Rebuked by Imprinter 6272 | -7/Zion | Attempted to imprint without authorization 6272 | -7/Zion | Attacked by Zionites 6301 | -7/Zion | Destroyed Imprinter 6302 | -7/Zion | Extracted access codes from Imprinter's data core 6333 | -7/Zion | Opened final containment barrier to the Deep Caves 6337 | -7/Zion | Discovered new exit (range 5) 6337 | -7/Zion | Saw the warning signs outside the Deep Caves entrance 6338 | -7/Zion | Entered Deep Caves 6340 | -7/Deep Caves | Reached level 17 6442 | -7/Deep Caves | Z-Facility disabled 6483 | -7/Deep Caves | Found Prototype Protection 6483 | -7/Deep Caves | Identified Zio. Weapon Casing 6579 | -7/Deep Caves | Core integrity fell below 50% 6598 | -7/Deep Caves | Core integrity fell below 20% 6625 | -7/Deep Caves | Destroyed by 2V-JPH(z) with Zionite Laser-S Last Messages --------------- 06572_ Destroyed Imp. Maneuvering Thrusters. 06572_ Tearclaws follow-up attack on 66-DOK(z). 06575_ Zio. Glidesys I ripped off. 06577_ Zio. Laser-S severed. 06577_ Tearclaws follow-up attack on 66-DOK(z). 06584_ TT-Q2F(z) destroyed. 06584_ Zio. Laser-S destroyed. 06587_ Tearclaws follow-up attack on R5-X86(z). 06589_ R5-X86(z) suffers critical hit. 06589_ R5-X86(z) destroyed. 06597_ Overheating: System interference. 06597_ Ripper temporarily disabled. 06598_ Upgraded: Heat Dissipation (+12) 06601_ ZB-PYZ(z) destroyed. 06603_ Zio. Glidesys I ripped off. 06604_ Overheating: Tearclaws damaged (-19). 06607_ Reactive Plating destroyed. 06608_ Phase Shifter ripped off. 06608_ Ripper follow-up attack on 2V-JPH(z). 06619_ Imp. Maneuvering Thrusters ripped off. Map ----- +----------------------------------------------------+ | | | | | | | | | | | | | | | | | | | | | | | | | | | | | | | | | ????????????????????####?????????????????????????? | | ????????????????????# [#????###############??????? | | ????????????????????# [#?#### ##?????? | | ????????????????##?## *### #????## | | ??????????????###"##; ### ###### | | ??????????# ??#; ## ## ## # | | ???? # ## ;# | | ???? =%! | | ???? [[=!!! | | ???? *%!%! @z | | ????# !!*= | | ????? !%! "" "" """""" | | ????? """""""""""""" | | ?????? """""""""""""" | | ?????? """""""""""""" | | ?????? """"""""""" | | ??????? """""""""""""" | | ??????? """"????"""""" | | ???????? """????""""""" | | ???????? ""????"""""""" | | ????????? ""????""" " " | | ????????? "????"""" | | ?????????? "????""" | | ???????????? ?????"""" | | ?????????????? "?????""" | | ????????????????? ??????""""" | | ???????????? ??????""""""""" | | ?????????? ??? ????"" | | ??????? ????"" """ | | ????? "???"" """"" | | ????# """??" ?"""""" | | ????# ""??" "?""""" | | ?? ?# ""?" """"""" | | ? # """" """"" | +----------------------------------------------------+ Best States ------------- Heat Dissipation 67 Energy Generation 73 Energy Capacity 500 Matter Stores 300 Matter Capacity 300 Sight Range 17 Robot Scan Range 12 Terrain Scan Range 16 Terrain Scan Density 60 Armor Coverage 225 Resistance: KI 20 Melee Speed Boost 20 Evasion (%) 70 Melee Accuracy 6 Target Analysis 5 Core Analysis 6 Recoil Reduction 1 Offensive Hacking 50 Defensive Hacking 25 Item Schematics ----------------- Lgt. Armor Plating | -10/Materials | Hacked Flight Unit | -10/Materials | Hacked Imp. Signal Interpreter | -9/Mines | Hacked Hacking Suite | -8/Materials | Hacked Remote Shield | -8/Storage | Hacked System Shield | -8/Storage | Hacked Melee Analysis Suite | -8/Storage | Hacked Imp. Thermal Converter | -8/Storage | Hacked Missile Launcher | -8/Storage | Hacked Spear | -7/Factory | Scanalyzed Imp. VTOL Module | -7/Factory | Hacked Component Analysis Suite | -7/Factory | Hacked Adv. System Shield | -7/Factory | Hacked Hvy. Pick | -7/Factory | Hacked Imp. Shield Generator | -7/Factory | Hacked Microactuators | -7/Factory | Hacked Imp. Light Armor Plating | -7/Factory | Hacked Imp. Melee Analysis Suite | -7/Factory | Hacked Matter Compressor | -7/Factory | Hacked Hvy. Machine Gun | -7/Factory | Hacked Imp. Dynamic Insulation System | -7/Factory | Hacked Shock Absorption System | -7/Factory | Hacked Hvy. Riot Gun | -7/Zion | Free Arc Thrower | -7/Zion | Free Battle Rifle | -7/Zion | Free Battle Cannon | -7/Zion | Free Robot Schematics ------------------ None Fabricated ------------ B-48 Gladiator | x3 | -7/Factory | Preloaded Melee Analysis Suite | x2 | -7/Factory Adv. System Shield | x1 | -7/Factory Alien Tech Used ----------------- None Achievements -------------- None Challenges ------------ None RPGLIKE | -11 -10 -10 -10 -9 -8 -8 -7 -7 -7 -7 -7 --------- Run | Scr Mat Min Exi Min Mat Sto Fac Low Low Zio Dee Levels Raised 16 | . 1 1 . 1 2 5 4 1 . . 1 XP Earned 27010 | 3000 2250 908 350 2200 2435 7131 5933 1427 814 220 342 XP Spent 26920 | 2750 1700 1535 . 1100 3370 4215 6830 550 2600 . 2270 Upgrades 53 | 6 3 9 . 1 6 10 8 4 1 . 5 Power Slot 2 | 1 . . . . . . 1 . . . . Propulsion Slot 3 | 1 1 . . 1 . . . . . . . Utility Slot 8 | 1 1 1 . . 1 1 2 . 1 . . Weapon Slot 3 | 1 . . . . 1 1 . . . . . Core Integrity 11 | . . 4 . . . 7 . . . . . Heat Dissipation 7 | . . 1 . . 1 . 3 . . . 2 Energy Generation 2 | . . . . . . . . . . . 2 Mass Support 3 | . 1 . . . 1 . . . . . 1 Inventory Capacity 4 | 2 . . . . . 1 1 . . . . Sight Range 1 | . . 1 . . . . . . . . . Sensor Range 6 | . . 2 . . . . . 4 . . . Melee Accuracy 3 | . . . . . 2 . 1 . . . . Protomatter Created 1964 | . 67 . . 110 44 600 366 362 242 . 173 Integrity Restored 5121 | . 201 . . 330 132 1798 661 1149 673 . 177 Core 4334 | . 201 . . 330 132 1790 357 848 499 . 177 Parts 787 | . . . . . . 8 304 301 174 . . Protomatter Decayed 604 | . . 54 . . . 46 304 15 126 59 . Game ------ Seed CatalystModifiedProcessor Manual? 0 Play Time 02:51:25 Cumulative 60.8 hours Start 2020.07.15 @ 15:19:52 End 2020.07.15 @ 19:48:21 Sessions 2 Manual Loads 0 Difficulty Rogue Special Mode Winter2019/RPGLIKE Game No. 34 Rogue 34 Adventurer 0 Explorer 0 Win Type - Total 1 Types 0/0/0/1/0/0/0 Lore% 54 Gallery% 42 Achievement% 51 Wizard Run 0 Options --------- ASCII 0 Keyboard 0 Movement Numpad Keybinds 0 Fullscreen 1 Font 14/SmallcapsGlow Map View 84x54 Tactical HUD 1 Map Filters NONE Filters NONE Steam 1 RUN: 466b570d-e399-4a71-8d2a-ba1cd8b2c52b